[Event "45th National Sub Junior 2019"]
[Site "Tiruchengode"]
[Date "2019.07.15"]
[Round "9.9"]
[White "Srikrishnan P"]
[Black "Aditya Bikram Paul"]
[Result "1/2-1/2"]
[ECO "E16"]
[WhiteElo "1990"]
[BlackElo "1761"]
[Annotator "NA RC"]
[PlyCount "60"]
[EventDate "2019.07.09"]
[EventCountry "IND"]
[SourceTitle "playchess.com"]
[Source "ChessBase"]
[SourceQuality "1"]
[TimeControl "5400+30"]

{[%evp 8,60,34,31,39,31,31,35,30,20,32767,32767,37,35,47,32767,32767,63,67,16,31,32,25,-4,0,-7,-10,-8,12,14,59,68,81,0,3,8,5,4,0,0,-4,0,0,0,0,0,0,0,32767,32767,32767,32767,0,0,0]} 1. d4 {[%emt 0:00:00]} Nf6 {[%emt 0:00:00]} 2. c4 {[%emt 0:00:00]} e6 {[%emt 0:00:00]} 3. Nf3 {[%emt 0:00:00]} Bb4+ {[%emt 0:00:00]} 4. Bd2 {[%emt 0:00:00]} c5 {[%emt 0:00:00]} 5. Bxb4 {[%emt 0:00:00]} cxb4 {[%emt 0:00:00]} 6. g3 {[%emt 0:00:00]} b6 {[%emt 0:00:00]} 7. Bg2 {[%emt 0:00:07]} Bb7 {[%emt 0:00:00]} 8. O-O {[%emt 0:00:07]} O-O {[%emt 0:00:01]} 9. a3 {[%emt 0:01:12]} Nc6 {[%emt 0:03:09] E16: Queen's Indian: 4 g3 Bb7 5 Bg2 Bb4+} (9... Qe7 10. Nbd2 Na6 11. Re1 bxa3 12. Rxa3 Nb4 13. e4 d6 14. Nh4 Rfd8 15. Bf1 a5 16. Ng2 e5 17. d5 Nd7 {½-½ (39) Kuzubov,Y (2635)-Moiseenko,A (2649) Izmir 2016}) 10. d5 $146 {[%emt 0:15:27]} ({Predecessor:} 10. Ne5 a5 11. Nd3 d5 12. cxd5 Nxd5 13. e3 Qd7 14. axb4 Ndxb4 15. Nxb4 Nxb4 16. Nc3 Rac8 17. Bxb7 Qxb7 {½-½ (58) Thejkumar,M (2461)-Gurevich,D (2368) Montcada 2015}) 10... Na5 {[%emt 0:00:58]} 11. Ne5 {[%emt 0:04:02]} exd5 {[%emt 0:02:17]} 12. axb4 {[%emt 0:05:07]} Nc6 {[%emt 0:00:49]} 13. Bxd5 {[%emt 0:06:38]} Nxd5 {[%emt 0:00:06]} 14. Qxd5 {[%emt 0:00:32]} Qe7 {[%emt 0:03:12]} 15. Nxc6 {[%emt 0:11:17]} ({Reject} 15. Qxd7 Qxd7 16. Nxd7 Rfd8 $17) ({Inferior is} 15. Nxd7 Rfd8 $17) 15... dxc6 {[%emt 0:00:03]} 16. Qd2 {[%emt 0:01:11]} Rfd8 {[%emt 0:01:34]} 17. Qf4 {[%emt 0:03:46]} c5 {[%emt 0:20:39]} ({Don't go for} 17... Qxb4 $2 18. Qc7 $18) 18. bxc5 {[%emt 0:02:02]} Qxc5 {[%emt 0:01:04]} 19. Nc3 {[%emt 0:03:09]} Rd4 {[%emt 0:00:21]} 20. Qe3 {[%emt 0:00:08]} (20. e4 $14) 20... Rxc4 {[%emt 0:01:37]} 21. Qxc5 {[%emt 0:00:26]} Rxc5 {[%emt 0:00:05]} 22. Rfd1 {[%emt 0:00:05]} a5 {[%emt 0:00:31]} 23. Rd6 {[%emt 0:09:22]} Bc6 {[%emt 0:01:33]} 24. Na4 {[%emt 0:03:11]} Bxa4 {[%emt 0:00:09]} 25. Rxa4 {[%emt 0:00:04]} Rb5 {[%emt 0:00:08]} 26. b4 {[%emt 0:00:14]} g6 {[%emt 0:00:03]} 27. bxa5 {[%emt 0:00:17]} bxa5 {[%emt 0:00:10]} 28. Rd3 {[%emt 0:00:07]} Ra7 {[%emt 0:00:03]} 29. Rda3 {[%emt 0:00:04]} Ra6 {[%emt 0:00:02]} 30. Kg2 {[%emt 0:00:07]} Kg7 $11 {[%emt 0:00:03]} 1/2-1/2

[Event "45th National Sub Junior 2019"]
[Site "Tiruchengode"]
[Date "2019.07.15"]
[Round "9.10"]
[White "Jain Kashish Manoj"]
[Black "Komal Srivatsav Sajja"]
[Result "1/2-1/2"]
[ECO "B28"]
[WhiteElo "1970"]
[BlackElo "1832"]
[Annotator "NA RC"]
[PlyCount "218"]
[EventDate "2019.07.09"]
[EventCountry "IND"]
[SourceTitle "playchess.com"]
[Source "ChessBase"]
[SourceQuality "1"]
[TimeControl "5400+30"]

1. e4 {[%emt 0:00:00]} c5 {[%emt 0:00:00]} 2. Nf3 {[%emt 0:00:00]} a6 {[%emt 0:00:00]} 3. d4 {[%emt 0:00:00]} cxd4 {[%emt 0:00:00]} 4. Nxd4 {[%emt 0:00:00]} Nf6 {[%emt 0:00:00]} 5. Nc3 {[%emt 0:00:04]} e5 {[%emt 0:00:00]} 6. Nf3 {[%emt 0:00:06]} Bb4 {[%emt 0:00:00]} 7. Bd2 {[%emt 0:10:53]} d6 {[%emt 0:00:01]} 8. Bd3 {[%emt 0:02:21]} O-O {[%emt 0:00:16]} 9. O-O {[%emt 0:01:03]} Bg4 {[%emt 0:00:21] B28: Sicilian: 2 Nf3 a6 (O'Kelly Variation)} 10. h3 {[%emt 0:04:42]} Bh5 {[%emt 0:00:44]} 11. g4 {[%emt 0:11:30]} Bxc3 $146 {[%emt 0:02:44]} ({Predecessor:} 11... Bg6 12. Bg5 Bxc3 13. bxc3 h6 14. Bh4 Nbd7 15. c4 Qc7 16. Nd2 Rfe8 17. a4 {1-0 (52) Figari,E (2080)-Aparicio,A (2305) Buenos Aires 1998}) 12. Bxc3 {[%emt 0:02:07]} Bg6 {[%emt 0:00:36]} 13. Qe2 {[%emt 0:00:36]} Nbd7 {[%emt 0:00:09]} 14. Bb4 {[%emt 0:14:40]} Qc7 {[%emt 0:00:28]} 15. Nh4 {[%emt 0:01:06]} Rfe8 {[%emt 0:04:26]} 16. c4 {[%emt 0:10:52]} Nf8 {[%emt 0:00:32]} 17. Bd2 {[%emt 0:01:51]} Ne6 {[%emt 0:00:12]} 18. f3 {[%emt 0:04:52]} Nd7 {[%emt 0:02:26]} 19. Be3 {[%emt 0:01:27]} Ndf8 {[%emt 0:03:01]} 20. Qf2 {[%emt 0:05:54]} Nd7 {[%emt 0:01:29]} 21. Rfd1 {[%emt 0:03:30]} Nb8 {[%emt 0:01:51]} 22. Rac1 {[%emt 0:01:31]} Nc6 {[%emt 0:01:32]} 23. Bb1 {[%emt 0:02:31]} Ned4 {[%emt 0:01:01]} 24. f4 {[%emt 0:02:03]} h6 {[%emt 0:04:24]} (24... f6 $16) 25. f5 {[%emt 0:01:20]} Bh7 {[%emt 0:00:19]} 26. Nf3 {[%emt 0:06:34]} Nxf3+ {[%emt 0:03:57]} 27. Qxf3 {[%emt 0:00:01]} Qe7 {[%emt 0:00:13]} 28. Qg3 {[%emt 0:01:02]} g5 {[%emt 0:04:44]} 29. Qf2 {[%emt 0:05:32]} f6 {[%emt 0:00:48]} 30. c5 {[%emt 0:00:28]} dxc5 {[%emt 0:01:02]} 31. Bxc5 {[%emt 0:00:02]} Qc7 {[%emt 0:00:38]} 32. Bb6 {[%emt 0:00:27]} Qg7 {[%emt 0:01:04]} 33. Rd6 {[%emt 0:01:23]} Re7 {[%emt 0:02:09]} 34. Bc2 {[%emt 0:00:37]} Kh8 {[%emt 0:00:45]} 35. Ba4 {[%emt 0:00:18]} Rd7 {[%emt 0:01:36]} 36. Rxd7 {[%emt 0:02:12]} Qxd7 {[%emt 0:00:02]} 37. Rd1 {[%emt 0:00:08]} Qe7 {[%emt 1:05:00]} 38. Bxc6 {[%emt 0:03:04]} bxc6 {[%emt 0:00:00]} 39. Bc5 {[%emt 0:01:48]} Qc7 $18 {[%emt 0:00:00]} 40. Qd2 {[%emt 0:00:15]} Rb8 {[%emt 0:00:00]} 41. b4 {[%emt 0:00:22]} Qf7 {[%emt 0:02:00]} 42. a4 {[%emt 0:00:32]} Qb3 {[%emt 0:00:00]} 43. Qd3 {[%emt 0:00:47]} Bg8 {[%emt 0:00:00]} 44. a5 {[%emt 0:00:25]} Rc8 {[%emt 0:00:00]} 45. Qxb3 {[%emt 0:00:40]} Bxb3 {[%emt 0:00:00]} 46. Rd6 {[%emt 0:00:17]} Kg7 {[%emt 0:00:00]} 47. Rd7+ {[%emt 0:00:03]} Kg8 {[%emt 0:00:00]} 48. Kf2 {[%emt 0:00:12]} Bc4 {[%emt 0:00:00]} 49. Bb6 {[%emt 0:00:57]} Rf8 {[%emt 0:00:00]} 50. Rd6 {[%emt 0:01:09]} Bb5 {[%emt 0:00:00]} 51. Bd8 {[%emt 0:00:27]} Kg7 {[%emt 0:00:00]} 52. Ke3 {[%emt 0:00:20]} Rf7 {[%emt 0:00:00]} 53. Kd2 {[%emt 0:00:16]} Rf8 {[%emt 0:00:00]} 54. Kc2 {[%emt 0:00:36]} Ba4+ {[%emt 0:00:00]} 55. Kc3 {[%emt 0:00:07]} Bb5 {[%emt 0:00:00]} 56. Kb2 {[%emt 0:01:19]} Rf7 {[%emt 0:00:00]} 57. Re6 {[%emt 0:00:31]} Rf8 {[%emt 0:00:00]} 58. Be7 {[%emt 0:00:03]} Rf7 {[%emt 0:00:00]} 59. Kc3 {[%emt 0:00:45]} Bf1 {[%emt 0:00:00]} 60. b5 {[%emt 0:00:38]} Bxb5 {[%emt 0:00:00]} 61. Kb4 {[%emt 0:00:33]} Bf1 {[%emt 0:00:00]} 62. Bd8 {[%emt 0:00:13]} Bxh3 {[%emt 0:00:00]} 63. Rxc6 {[%emt 0:00:32]} Bf1 {[%emt 0:00:00]} 64. Kc5 {[%emt 0:00:46]} Be2 {[%emt 0:00:00]} 65. Kd6 {[%emt 0:00:28]} Bb5 {[%emt 0:00:00]} 66. Rc8 {[%emt 0:00:29]} Rd7+ {[%emt 0:00:00]} 67. Ke6 {[%emt 0:00:22]} Rf7 {[%emt 0:00:00]} 68. Be7 {[%emt 0:00:09]} Ba4 {[%emt 0:00:00]} 69. Rc7 {[%emt 0:00:59]} Bb3+ {[%emt 0:00:00]} 70. Kd6 {[%emt 0:00:04]} Ba4 {[%emt 0:00:00]} 71. Rb7 {[%emt 0:00:39]} Bc2 {[%emt 0:00:00]} 72. Ke6 {[%emt 0:00:28]} Kg8 {[%emt 0:00:00]} 73. Rb8+ {[%emt 0:00:36]} Kg7 {[%emt 0:00:00]} 74. Rb7 {[%emt 0:00:02]} Kg8 {[%emt 0:00:00]} 75. Rb2 {[%emt 0:01:01]} Bxe4 {[%emt 0:00:00]} 76. Bxf6 {[%emt 0:00:36]} Bf3 {[%emt 0:00:00]} 77. Rh2 {[%emt 0:00:41]} h5 {[%emt 0:00:00]} 78. gxh5 {[%emt 0:00:26]} g4 {[%emt 0:00:00]} 79. Bxe5 {[%emt 0:00:30]} g3 {[%emt 0:00:00]} 80. Bxg3 {[%emt 0:00:13]} Bg4 {[%emt 0:00:00]} 81. Rf2 {[%emt 0:00:43]} Bxh5 {[%emt 0:00:00]} 82. Bd6 {[%emt 0:00:27]} Bd1 {[%emt 0:00:00]} 83. Be7 {[%emt 0:00:44]} Bb3+ {[%emt 0:00:00]} 84. Kd6 {[%emt 0:00:08]} Bc4 {[%emt 0:00:00]} 85. f6 {[%emt 0:00:08]} Rh7 {[%emt 0:00:00]} 86. Rf4 {[%emt 0:00:16]} Ba2 {[%emt 0:00:00]} 87. Kc6 {[%emt 0:01:11]} Bb1 {[%emt 0:00:00]} 88. Rd4 {[%emt 0:00:03]} Kf7 {[%emt 0:00:00]} 89. Kb6 {[%emt 0:00:12]} Rh3 {[%emt 0:00:00]} 90. Kxa6 {[%emt 0:00:19]} Rb3 {[%emt 0:00:00]} 91. Ka7 {[%emt 0:01:28]} Bf5 {[%emt 0:00:00]} 92. Rd6 {[%emt 0:00:31]} Rb5 {[%emt 0:00:00]} 93. Ra6 {[%emt 0:00:42]} Bc8 {[%emt 0:00:00]} 94. Bd8 {[%emt 0:00:31]} Bxa6 {[%emt 0:00:00]} 95. Kxa6 {[%emt 0:00:00]} Rb8 {[%emt 0:00:00]} 96. Be7 {[%emt 0:00:44]} Rb3 {[%emt 0:00:00]} 97. Ka7 {[%emt 0:00:10]} Rb1 {[%emt 0:00:00]} 98. Bd8 {[%emt 0:00:41]} Rb3 {[%emt 0:00:00]} 99. Ka8 {[%emt 0:00:37]} Rb4 {[%emt 0:00:00]} 100. a6 {[%emt 0:00:37]} Rb3 {[%emt 0:00:00]} 101. Ka7 {[%emt 0:00:07]} Ke6 {[%emt 0:00:00]} 102. Be7 {[%emt 0:00:10]} Kf7 {[%emt 0:00:00]} 103. Ka8 {[%emt 0:00:09]} Rb6 {[%emt 0:00:00]} 104. Ka7 {[%emt 0:00:08]} Rb3 {[%emt 0:00:00]} 105. Bd8 {[%emt 0:00:05]} Ke6 {[%emt 0:00:00]} 106. Bb6 {[%emt 0:00:06]} Kxf6 {[%emt 0:00:00]} 107. Kb7 {[%emt 0:00:04]} Ra3 {[%emt 0:00:00]} 108. a7 {[%emt 0:00:04]} Rxa7+ {[%emt 0:00:00]} 109. Bxa7 {[%emt 0:00:05]} Ke5 {[%emt 0:34:00]} 1/2-1/2

[Event "45th National Sub Junior 2019"]
[Site "Tiruchengode"]
[Date "2019.07.16"]
[Round "10.5"]
[White "Srikrishnan P"]
[Black "Pranesh M"]
[Result "1/2-1/2"]
[ECO "D07"]
[WhiteElo "1990"]
[BlackElo "2343"]
[Annotator "RC"]
[PlyCount "79"]
[EventDate "2019.07.09"]
[EventCountry "IND"]
[SourceTitle "playchess.com"]
[Source "ChessBase"]
[SourceQuality "1"]
[TimeControl "5400+30"]

1. d4 {[%emt 0:00:00]} d5 {[%emt 0:00:00]} 2. c4 {[%emt 0:00:00]} Nc6 {[%emt 0:00:00]} 3. Nf3 {[%emt 0:00:00]} Bg4 {[%emt 0:00:01]} 4. Nc3 {[%emt 0:01:21]} e6 {[%emt 0:00:06]} 5. e3 {[%emt 0:02:40]} Nf6 {[%emt 0:00:14]} 6. Be2 {[%emt 0:00:06]} Bb4 {[%emt 0:01:10]} 7. O-O {[%emt 0:00:15]} Bxc3 {[%emt 0:01:13]} 8. bxc3 {[%emt 0:00:06]} Ne4 {[%emt 0:00:23]} 9. Qc2 {[%emt 0:14:58]} O-O {[%emt 0:01:39]} 10. Ba3 {[%emt 0:00:27]} Re8 {[%emt 0:00:20]} 11. Rfc1 {[%emt 0:06:41]} Qf6 {[%emt 0:04:02]} 12. Rab1 {[%emt 0:05:30]} Rab8 {[%emt 0:02:01]} 13. h3 {[%emt 0:07:39]} Bh5 {[%emt 0:01:15]} 14. cxd5 {[%emt 0:16:27]} exd5 {[%emt 0:00:18]} 15. c4 {[%emt 0:00:25]} dxc4 {[%emt 0:06:42]} 16. Rb5 {[%emt 0:00:59]} Qh6 {[%emt 0:08:11]} 17. Qxc4 {[%emt 0:25:30]} Bxf3 {[%emt 0:04:50]} 18. Bxf3 {[%emt 0:00:11]} Nxf2 {[%emt 0:01:15]} 19. Rc3 {[%emt 0:01:30]} Nxh3+ {[%emt 0:06:46]} 20. gxh3 {[%emt 0:00:05]} Rxe3 {[%emt 0:00:31]} 21. Qxc6 {[%emt 0:02:21]} Re1+ {[%emt 0:01:37]} 22. Kh2 {[%emt 0:00:24]} Qf4+ {[%emt 0:01:29]} 23. Kg2 {[%emt 0:00:05]} Qd2+ {[%emt 0:06:44]} 24. Kg3 {[%emt 0:00:45]} Rg1+ {[%emt 0:02:51]} 25. Bg2 {[%emt 0:02:10]} Rxg2+ {[%emt 0:00:27]} 26. Qxg2 {[%emt 0:00:09]} Qxc3+ {[%emt 0:00:03]} 27. Qf3 {[%emt 0:00:11]} Qxd4 {[%emt 0:00:22]} 28. Bb2 {[%emt 0:01:42]} Qd6+ {[%emt 0:02:47]} 29. Be5 {[%emt 0:02:21]} Qh6 {[%emt 0:06:57]} 30. Bf4 {[%emt 0:02:13]} Qa6 {[%emt 0:06:25]} 31. Rb2 {[%emt 0:00:51]} Re8 {[%emt 0:01:03]} 32. Rg2 {[%emt 0:00:40]} c5 {[%emt 0:00:30]} 33. Kh2 {[%emt 0:00:12]} Qf6 {[%emt 0:00:12]} 34. Qg3 {[%emt 0:01:06]} c4 {[%emt 0:00:57]} 35. Bd2 {[%emt 0:00:56]} Qg6 {[%emt 0:04:45]} 36. Qf4 {[%emt 0:00:18]} Qe4 {[%emt 0:02:49]} 37. Qxe4 {[%emt 0:07:16]} Rxe4 38. Bc3 {[%emt 0:00:30]} g6 {[%emt 0:28:05]} 39. Rd2 {[%emt 0:00:30]} f5 {[%emt 0:00:30]} 40. Rd8+ 1/2-1/2

[Event "45th National Sub Junior 2019"]
[Site "Tiruchengode"]
[Date "2019.07.16"]
[Round "10.9"]
[White "Aditya Bikram Paul"]
[Black "Nikhil Magizhnan"]
[Result "0-1"]
[ECO "A20"]
[WhiteElo "1761"]
[BlackElo "2164"]
[Annotator "RC"]
[PlyCount "108"]
[EventDate "2019.07.09"]
[EventCountry "IND"]
[SourceTitle "playchess.com"]
[Source "ChessBase"]
[SourceQuality "1"]
[TimeControl "5400+30"]

1. c4 {[%emt 0:00:00]} e5 {[%emt 0:00:00]} 2. g3 {[%emt 0:00:00]} Nf6 {[%emt 0:00:00]} 3. Bg2 {[%emt 0:00:00]} c6 {[%emt 0:00:05]} 4. d4 {[%emt 0:00:07]} e4 {[%emt 0:00:10]} 5. Nc3 {[%emt 1:32:23]} d5 {[%emt 0:00:06]} 6. Bg5 {[%emt 0:00:00]} Nbd7 {[%emt 0:05:39]} 7. cxd5 {[%emt 0:00:00]} cxd5 {[%emt 0:00:06]} 8. Nh3 {[%emt 0:00:00]} h6 {[%emt 0:14:09]} 9. Bf4 {[%emt 0:00:00]} g5 {[%emt 0:06:07]} 10. Be5 {[%emt 0:00:00]} Bg7 {[%emt 0:01:15]} 11. Qb3 {[%emt 0:00:00]} O-O {[%emt 0:05:54]} 12. O-O {[%emt 0:00:00]} Re8 {[%emt 0:08:37]} 13. f4 {[%emt 0:00:00]} exf3 {[%emt 0:01:30]} 14. Bxf6 {[%emt 0:00:00]} Qxf6 {[%emt 0:07:14]} 15. exf3 {[%emt 0:00:00]} Qxd4+ {[%emt 0:00:13]} 16. Kh1 {[%emt 0:00:00]} Nc5 {[%emt 0:01:29]} 17. Qxd5 {[%emt 0:00:00]} Qxd5 {[%emt 0:07:12]} 18. Nxd5 {[%emt 0:00:00]} Re2 {[%emt 0:00:25]} 19. Rae1 {[%emt 0:00:00]} Rd2 {[%emt 0:10:47]} 20. Ne7+ {[%emt 0:00:00]} Kf8 {[%emt 0:01:55]} 21. Nxc8 {[%emt 0:00:00]} Rxc8 {[%emt 0:00:04]} 22. Rf2 {[%emt 0:00:00]} Rcd8 {[%emt 0:01:17]} 23. Bf1 {[%emt 0:00:00]} Rxb2 {[%emt 0:02:37]} 24. Rxb2 {[%emt 0:00:00]} Bxb2 {[%emt 0:00:02]} 25. Nf2 {[%emt 0:00:00]} Bg7 {[%emt 0:04:43]} 26. Ne4 {[%emt 0:00:00]} Ne6 {[%emt 0:00:30]} 27. a4 {[%emt 0:00:00]} f5 {[%emt 0:03:09]} 28. Nf2 {[%emt 0:00:00]} Nc5 {[%emt 0:00:34]} 29. Rc1 {[%emt 0:00:00]} b6 {[%emt 0:00:48]} 30. a5 {[%emt 0:00:00]} Rd2 {[%emt 0:00:30]} 31. axb6 {[%emt 0:00:00]} axb6 {[%emt 0:00:01]} 32. Nh3 {[%emt 0:00:00]} Nd3 {[%emt 0:03:06]} 33. Rc6 {[%emt 0:00:00]} Ne5 {[%emt 0:02:41]} 34. Rc8+ {[%emt 0:00:00]} Ke7 {[%emt 0:00:38]} 35. Ng1 {[%emt 0:00:00]} g4 {[%emt 0:02:30]} 36. Rc7+ {[%emt 0:00:00]} Kf8 {[%emt 0:00:35]} 37. Rc8+ {[%emt 0:00:00]} Kf7 {[%emt 0:00:57]} 38. Rc7+ {[%emt 0:00:00]} Kg6 {[%emt 0:00:47]} 39. f4 {[%emt 0:00:00]} Nf3 {[%emt 0:00:34]} 40. Nxf3 {[%emt 0:00:00]} gxf3 {[%emt 0:00:03]} 41. Rc1 {[%emt 0:00:00]} Bd4 {[%emt 0:02:14]} 42. Rb1 {[%emt 0:00:00]} Kf6 {[%emt 0:00:52]} 43. Ba6 {[%emt 0:00:00]} Ra2 {[%emt 0:01:10]} 44. Bb5 {[%emt 0:00:00]} Ke7 {[%emt 0:00:49]} 45. Rf1 {[%emt 0:00:00]} Ra3 {[%emt 0:01:39]} 46. Bc6 {[%emt 0:00:00]} f2 {[%emt 0:00:07]} 47. Kg2 {[%emt 0:00:00]} Kd6 {[%emt 0:00:02]} 48. Bf3 {[%emt 0:00:00]} b5 {[%emt 0:00:12]} 49. Rd1 {[%emt 0:00:00]} Kc5 {[%emt 0:00:17]} 50. Rc1+ {[%emt 0:00:00]} Kb4 {[%emt 0:00:29]} 51. Rb1+ {[%emt 0:00:00]} Kc3 {[%emt 0:01:36]} 52. Rxb5 {[%emt 0:00:00]} Ra1 {[%emt 0:00:32]} 53. Be2 {[%emt 0:00:00]} Rg1+ {[%emt 0:00:29]} 54. Kh3 {[%emt 0:00:00]} Re1 {[%emt 0:00:47]} 0-1

[Event "45th National Sub Junior 2019"]
[Site "Tiruchengode"]
[Date "2019.07.16"]
[Round "10.10"]
[White "Ilamparthi A R"]
[Black "Praloy Sahoo"]
[Result "0-1"]
[ECO "D00"]
[WhiteElo "2036"]
[BlackElo "1905"]
[Annotator "NA RC"]
[PlyCount "120"]
[EventDate "2019.07.09"]
[EventCountry "IND"]
[SourceTitle "playchess.com"]
[Source "ChessBase"]
[SourceQuality "1"]
[TimeControl "5400+30"]

1. d4 {[%emt 1:30:30]} d5 {[%emt 0:00:08]} 2. Nc3 {[%emt 0:00:00]} Nf6 {[%emt 0:01:35]} 3. Bf4 {[%emt 0:01:00]} Bf5 {[%emt 0:05:31]} 4. Nf3 {[%emt 0:00:00]} e6 {[%emt 0:00:33]} 5. Nb5 {[%emt 0:00:00]} Na6 {[%emt 0:00:14]} 6. e3 {[%emt 0:00:00]} c6 {[%emt 0:03:33]} 7. Nc3 {[%emt 0:00:00]} Qb6 {[%emt 0:01:36]} 8. Rb1 {[%emt 0:00:00]} Nb4 {[%emt 0:02:28]} 9. Bd3 {[%emt 0:00:00]} Nxd3+ {[%emt 0:31:00]} 10. cxd3 {[%emt 0:00:00]} Be7 {[%emt 0:00:17]} 11. Ne5 {[%emt 0:00:00]} h6 {[%emt 0:01:11]} 12. O-O {[%emt 0:00:00]} O-O {[%emt 0:01:18]} 13. Qe2 {[%emt 0:00:00]} Rac8 {[%emt 0:07:34]} 14. Rfc1 {[%emt 0:00:00]} c5 {[%emt 0:09:00]} 15. e4 {[%emt 0:00:00]} dxe4 {[%emt 0:06:02]} 16. dxe4 {[%emt 0:00:00]} Bh7 {[%emt 0:00:04]} 17. dxc5 {[%emt 0:00:00]} Bxc5 {[%emt 0:00:14]} 18. Na4 {[%emt 0:00:00]} Qa5 {[%emt 0:00:26]} 19. Nxc5 {[%emt 0:00:00]} Rxc5 {[%emt 0:00:05]} 20. Rxc5 {[%emt 0:00:00]} Qxc5 {[%emt 0:00:11]} 21. Rc1 {[%emt 0:00:00]} Qa5 {[%emt 0:01:59]} 22. f3 {[%emt 0:00:00]} Nh5 {[%emt 0:15:21]} 23. Qd2 {[%emt 0:00:00]} Qb5 {[%emt 0:00:06]} 24. Nd7 {[%emt 0:00:00]} Nxf4 {[%emt 0:00:48]} 25. Rc5 {[%emt 0:00:00]} Qd3 {[%emt 0:02:58]} 26. Qxd3 {[%emt 0:00:00]} Nxd3 {[%emt 0:00:04]} 27. Rc3 {[%emt 0:00:00]} Nf4 {[%emt 0:00:04]} 28. Rc7 {[%emt 0:00:00]} Ra8 {[%emt 0:00:28]} 29. Rxb7 {[%emt 0:00:00]} Bg6 {[%emt 0:04:28]} 30. g3 {[%emt 0:00:00]} Nh3+ {[%emt 0:00:56]} 31. Kg2 {[%emt 0:00:00]} Ng5 {[%emt 0:00:02]} 32. Ne5 {[%emt 0:00:00]} Rc8 {[%emt 0:03:36]} 33. h4 {[%emt 0:15:00]} Rc2+ {[%emt 0:01:43]} 34. Kf1 {[%emt 0:00:00]} Nh3 {[%emt 0:00:07]} 35. Rb8+ {[%emt 0:00:00]} Kh7 {[%emt 0:00:03]} 36. Nd7 {[%emt 0:00:00]} h5 {[%emt 0:00:08]} 37. Nf8+ {[%emt 0:00:00]} Kh6 {[%emt 0:00:09]} 38. Nd7 {[%emt 0:00:00]} Bh7 {[%emt 0:01:43]} 39. Ne5 {[%emt 0:00:00]} f5 {[%emt 0:01:00]} 40. Nf7+ {[%emt 0:00:00]} Kg6 {[%emt 0:00:08]} 41. Rf8 {[%emt 0:00:00]} Bg8 {[%emt 0:01:04]} 42. Nd6 {[%emt 0:00:00]} fxe4 {[%emt 0:00:25]} 43. Nxe4 {[%emt 0:00:00]} Bf7 {[%emt 0:00:35]} 44. g4 {[%emt 0:00:00]} Nf4 {[%emt 0:00:20]} 45. Nd6 {[%emt 0:01:03]} Rc7 {[%emt 0:00:01]} 46. b3 {[%emt 0:00:31]} e5 {[%emt 0:00:09]} 47. g5 {[%emt 0:01:31]} Be6 {[%emt 0:00:31]} 48. Re8 {[%emt 0:00:27]} Rc1+ {[%emt 0:00:10]} 49. Kf2 {[%emt 0:00:05]} Rc2+ {[%emt 0:00:01]} 50. Ke1 {[%emt 0:00:07]} Rc6 {[%emt 0:00:33]} 51. Ne4 {[%emt 0:00:29]} Ng2+ {[%emt 0:00:06]} 52. Kd2 {[%emt 0:00:07]} Nxh4 {[%emt 0:00:02]} 53. Ke3 {[%emt 0:00:14]} Nf5+ {[%emt 0:00:34]} 54. Kf2 {[%emt 0:00:16]} Nd4 {[%emt 0:00:11]} 55. Ke3 {[%emt 0:00:19]} Rc8 {[%emt 0:00:17]} 56. Rxc8 {[%emt 0:00:20]} Bxc8 {[%emt 0:00:01]} 57. Nd6 {[%emt 0:00:07]} Nf5+ {[%emt 0:00:07]} 58. Nxf5 {[%emt 0:00:05]} Kxf5 {[%emt 0:00:00]} 59. b4 {[%emt 0:00:10]} Bb7 {[%emt 0:00:08]} 60. a4 {[%emt 0:00:06]} Kxg5 {[%emt 0:00:01]} 0-1

[Event "45th National Sub Junior 2019"]
[Site "Tiruchengode"]
[Date "2019.07.17"]
[Round "11.6"]
[White "Nikhil Magizhnan"]
[Black "Anadkat Kartavya"]
[Result "*"]
[ECO "C68"]
[WhiteElo "2164"]
[BlackElo "1941"]
[Annotator "ChessBase"]
[PlyCount "62"]
[EventDate "2019.07.09"]
[EventCountry "IND"]
[SourceTitle "playchess.com"]
[Source "ChessBase"]
[SourceQuality "1"]
[TimeControl "5400+30"]

1. e4 {[%emt 0:00:00]} e5 {[%emt 0:00:00]} 2. Nf3 {[%emt 0:00:00]} Nc6 {[%emt 0:00:00]} 3. Bb5 {[%emt 0:00:01]} a6 {[%emt 0:00:00]} 4. Bxc6 {[%emt 0:00:24]} dxc6 {[%emt 0:00:00]} 5. O-O {[%emt 0:00:05]} Bg4 {[%emt 0:00:00]} 6. h3 {[%emt 0:00:26]} Bh5 {[%emt 0:00:00]} 7. g4 {[%emt 0:01:08]} Bg6 {[%emt 0:00:00]} 8. Nxe5 {[%emt 0:00:04]} Qh4 {[%emt 0:00:00]} 9. Qf3 {[%emt 0:01:35]} f6 {[%emt 0:00:00]} 10. Nxg6 {[%emt 0:01:23]} hxg6 {[%emt 0:00:16]} 11. Kg2 {[%emt 0:00:35]} g5 {[%emt 0:00:01]} 12. d4 {[%emt 0:08:42]} O-O-O {[%emt 0:01:56]} 13. Be3 {[%emt 0:00:32]} Ne7 {[%emt 0:00:54]} 14. Nd2 {[%emt 0:15:42]} Kb8 {[%emt 0:02:01]} 15. Rh1 {[%emt 0:01:52]} Ng6 {[%emt 0:04:12]} 16. Qf5 {[%emt 0:04:58]} Qh6 {[%emt 0:04:21]} 17. Nf3 {[%emt 0:01:18]} Ne7 {[%emt 0:00:02]} 18. Qe6 {[%emt 0:01:37]} Qg6 {[%emt 0:01:31]} 19. Nd2 {[%emt 0:08:12]} Qe8 {[%emt 0:04:05]} 20. Rae1 {[%emt 0:08:04]} Rh6 {[%emt 0:01:25]} 21. Qb3 {[%emt 0:02:57]} Ng6 {[%emt 0:00:30]} 22. Nf3 {[%emt 0:01:26]} Rh8 {[%emt 0:07:54]} 23. e5 {[%emt 0:08:40]} c5 {[%emt 0:03:49]} 24. d5 {[%emt 0:03:44]} Nxe5 {[%emt 0:07:47]} 25. Nxe5 {[%emt 0:00:21]} Qxe5 {[%emt 0:05:04]} 26. Bxc5 {[%emt 0:00:58]} Qf4 {[%emt 0:00:39]} 27. Be3 {[%emt 0:13:19]} Qe4+ {[%emt 0:03:19]} 28. f3 {[%emt 0:00:05]} Qxd5 {[%emt 0:03:12]} 29. Rd1 {[%emt 0:00:11]} Qxd1 {[%emt 0:00:06]} 30. Rf1 {[%emt 0:16:41]} Qe1 31. Rxe1 {[%emt 0:00:00]} Rd1 {[%emt 0:00:33]} *